bitfinex/quotes_SOLUSD_20250922
["timestamp","ask_amount","ask_price","bid_price","bid_amount"]
[1758508763075,0.69,231.55,231.44,4.32077428]
[1758508763796,0.69,231.55,231.44,15.12270998]
[1758508763972,0.69,231.55,231.44,10.8019357]
[1758508764691,31.89,231.54,231.41,4.4212845]
[1758508764890,0.69,231.53,231.41,0.1]
[1758508765191,0.69,231.53,231.41,4.42125114]
[1758508765388,0.69,231.52,231.41,4.42125114]
[1758508765688,0.69,231.52,231.41,15.22458721]
[1758508766490,0.69,231.51,231.41,4.42125114]
[1758508766665,0.69,231.5,231.41,0.1]
[1758508767377,0.69,231.5,231.41,4.42125275]
[1758508767580,31.2,231.52,231.41,4.42125275]
[1758508767786,0.67,231.49,231.41,0.1]
[1758508768295,4.98997944,231.49,231.41,0.1]
[1758508768801,0.67,231.49,231.41,0.1]
[1758508768965,4.98988009,231.49,231.41,0.1]
[1758508769273,0.67,231.49,231.41,0.1]
[1758508769468,0.67,231.49,231.41,4.42126897]
[1758508769869,0.67,231.49,231.41,0.1]
[1758508771086,0.67,231.49,231.41,4.42129603]
[1758508771462,0.67,231.49,231.41,15.2246321]
[1758508771669,31.2,231.49,231.41,15.2246321]
[1758508772096,31.2,231.49,231.41,4.42129603]
[1758508772388,31.87,231.49,231.41,4.42129603]
[1758508772699,31.87,231.49,231.41,15.2246321]
[1758508772862,163.4,231.52,231.41,15.2246321]
[1758508773067,0.67,231.51,231.41,15.2246321]
[1758508773284,132.2,231.52,231.41,15.2246321]
[1758508774485,0.67,231.53,231.41,15.2246321]
[1758508774674,0.67,231.52,231.41,4.42129603]
[1758508774875,0.67,231.51,231.41,4.42129603]
[1758508775099,0.67,231.5,231.41,4.42129603]
[1758508775291,0.67,231.49,231.41,4.42128343]
[1758508775800,0.67,231.48,231.41,0.1]
[1758508776367,0.67,231.48,231.41,4.42127571]
[1758508776597,10.7952236,231.59,231.41,4.42125421]
[1758508776801,0.67,231.52,231.41,15.22459028]
[1758508777395,31.2,231.53,231.41,15.22459028]
[1758508777602,0.67,231.54,231.41,15.22459028]
[1758508778284,4.31928127,231.52,231.41,4.42125421]
[1758508778475,4.31928127,231.52,231.41,0.1]
[1758508778476,0.67,231.51,231.41,0.1]
[1758508778897,31.87,231.51,231.41,4.42132413]
[1758508779186,0.67,231.5,231.41,0.1]
[1758508779503,31.2,231.49,231.41,4.42126479]
[1758508779709,0.67,231.48,231.41,0.1]
[1758508780404,4.99003646,231.48,231.41,0.1]
[1758508780582,31.2,231.47,231.41,0.1]
[1758508781105,41.64,231.52,231.41,0.1]
[1758508781106,0.67,231.46,231.41,4.42122419]
[1758508781506,31.2,231.49,231.41,4.42122419]
[1758508781683,0.67,231.5,231.41,4.42122419]
[1758508781882,36.18967417,231.5,231.41,0.1]
[1758508782084,0.67,231.49,231.41,0.1]
[1758508782314,4.32002764,231.48,231.41,0.1]
[1758508782483,31.2,231.45,231.31,0.1]
[1758508782684,0.67,231.44,231.31,4.42302354]
[1758508782882,31.87,231.44,231.31,4.42302354]
[1758508783509,0.67,231.43,231.31,4.42302354]
[1758508784006,4.99099374,231.43,231.31,4.42302354]
[1758508784505,0.67,231.42,231.31,4.42312022]
[1758508785226,0.67,231.48,231.32,31.3]
[1758508785389,0.67,231.52,231.33,0.1]
[1758508785591,0.67,231.52,231.34,15.12924698]
[1758508785788,0.67,231.52,231.35,0.1]
[1758508787805,0.67,231.52,231.36,15.12793913]
[1758508788026,0.67,231.52,231.37,0.1]
[1758508788389,4.98932217,231.52,231.37,0.1]
[1758508788613,0.67,231.52,231.37,0.1]
[1758508788809,4.98931379,231.52,231.37,0.1]
[1758508789028,0.67,231.54,231.39,31.2]
[1758508789211,0.67,231.54,231.4,0.1]
[1758508789695,0.67,231.54,231.41,15.12467049]
[1758508790021,0.67,231.54,231.42,41.66]
[1758508791400,0.67,231.54,231.43,4.32096098]
[1758508791714,0.67,231.54,231.43,45.88096098]
[1758508792215,0.67,231.54,231.43,56.68336343]
[1758508792513,0.67,231.53,231.43,4.32096098]
[1758508792687,0.67,231.52,231.43,4.32096098]
[1758508794714,35.61799199,231.59,231.43,4.32096098]
[1758508794924,0.67,231.55,231.44,0.1]
[1758508795498,0.67,231.58,231.45,15.12205658]
[1758508795711,0.1,231.59,231.46,0.1]
[1758508796118,0.77,231.59,231.46,0.1]
[1758508796915,0.77,231.59,231.47,15.12074998]
[1758508797735,0.77,231.59,231.48,0.1]
[1758508797899,0.1,231.59,231.48,0.53200276]
[1758508798100,0.1,231.59,231.49,0.1]
[1758508798399,0.1,231.59,231.5,41.91196544]
[1758508798601,0.1,231.59,231.51,0.1]
[1758508798907,0.1,231.59,231.53,15.1168315]
[1758508799218,0.1,231.59,231.53,15.2168315]
[1758508800613,0.1,231.59,231.53,4.31909471]
[1758508800810,0.1,231.59,231.55,4.31872165]
[1758508801037,0.1,231.59,231.55,15.11552579]
[1758508801243,0.1,231.59,231.56,0.1]
[1758508801542,0.1,231.59,231.56,0.53185351]
[1758508801723,1e-08,231.59,231.57,0.1]
[1758508801917,1e-08,231.59,231.58,0.53181621]
[1758508802120,1e-08,231.59,231.58,0.1]
[1758508802323,1e-08,231.59,231.55,4.31872165]
[1758508802726,1e-08,231.59,231.56,0.1]
[1758508802929,1e-08,231.59,231.55,10.79680414]
[1758508803539,0.66,231.58,231.53,4.31909471]
[1758508803739,0.66,231.57,231.49,41.42]
[1758508803922,0.66,231.56,231.45,4.32058759]
[1758508804639,0.66,231.56,231.45,15.22205658]
[1758508804836,1e-08,231.59,231.47,15.12074998]
[1758508805050,1e-08,231.59,231.5,31.2]
[1758508806019,0.66,231.58,231.5,31.2]
[1758508806230,0.66,231.58,231.47,15.12074998]
[1758508806431,1e-08,231.59,231.47,15.12074998]
[1758508806432,0.66,231.57,231.47,15.12074998]
[1758508806637,0.66,231.56,231.47,4.32021428]
[1758508806841,0.66,231.55,231.45,4.32058759]
[1758508807136,1e-08,231.59,231.45,4.32058759]
[1758508807137,0.66,231.54,231.45,15.12205658]
[1758508807524,4.31799933,231.59,231.45,15.12205658]
[1758508807525,1e-08,231.59,231.45,15.12205658]
[1758508807841,1e-08,231.59,231.46,0.1]
[1758508808438,0.66,231.58,231.46,0.1]
[1758508808941,1e-08,231.59,231.47,36.72182139]
[1758508809338,1e-08,231.59,231.48,0.1]
[1758508810640,1e-08,231.59,231.49,41.36]
[1758508810832,1e-08,231.59,231.5,0.43196544]
[1758508811030,1e-08,231.59,231.51,36.71547664]
[1758508811232,1e-08,231.59,231.51,36.81547664]
[1758508811417,1e-08,231.59,231.52,0.1]
[1758508812946,1e-08,231.59,231.55,15.11552579]
[1758508813442,1e-08,231.59,231.56,0.1]
[1758508813642,1e-08,231.59,231.56,41.42]
[1758508813851,1e-08,231.59,231.57,0.1]
[1758508814346,1e-08,231.59,231.58,0.1]
[1758508814932,1e-08,231.59,231.58,4.41816219]
[1758508815138,1e-08,231.59,231.58,4.31816219]
[1758508815350,1e-08,231.59,231.56,4.31843004]
[1758508816130,1e-08,231.59,231.56,15.11476792]
[1758508816330,0.66,231.58,231.53,41.3]
[1758508816534,1e-08,231.59,231.53,4.31897449]
[1758508816535,0.66,231.57,231.53,4.31897449]
[1758508816836,0.66,231.56,231.53,4.31897449]
[1758508817036,0.66,231.56,231.5,10.79883172]
[1758508817222,0.66,231.56,231.48,4.32002764]
[1758508817430,1e-08,231.59,231.45,4.32058759]
[1758508817431,0.66,231.55,231.45,4.32058759]
[1758508817644,0.66,231.54,231.45,4.32058759]
[1758508817848,0.66,231.54,231.45,15.12205658]
[1758508818346,0.66,231.53,231.45,4.32058759]
[1758508819133,31.2,231.56,231.45,4.32058759]
[1758508819350,0.66,231.52,231.45,4.32058759]
[1758508819546,0.66,231.51,231.45,4.32058759]
[1758508820357,0.66,231.51,231.45,15.12205658]
[1758508820661,31.20000001,231.59,231.45,56.46205658]
[1758508820822,0.66,231.58,231.45,56.46205658]
[1758508821022,0.66,231.58,231.46,0.1]
[1758508821246,0.66,231.58,231.47,4.32021428]
[1758508821450,0.66,231.57,231.46,41.24]
[1758508821630,0.66,231.56,231.46,41.24]
[1758508821946,0.66,231.57,231.46,56.46137603]
[1758508822331,1e-08,231.59,231.47,0.1]
[1758508823226,1e-08,231.59,231.48,15.12009676]
[1758508823738,1e-08,231.59,231.49,0.1]
[1758508824959,1e-08,231.59,231.5,0.43196544]
[1758508825265,1e-08,231.59,231.51,15.11813744]
[1758508825588,1e-08,231.59,231.52,41.2]
[1758508825734,1e-08,231.59,231.52,41.3]
[1758508825934,1e-08,231.59,231.53,0.1]
[1758508827040,1e-08,231.59,231.52,41.2]
[1758508827352,1e-08,231.59,231.53,15.1168315]
[1758508827963,1e-08,231.59,231.53,15.2168315]
[1758508828333,1e-08,231.59,231.53,15.1168315]
[1758508828537,1e-08,231.59,231.54,0.1]
[1758508828944,1e-08,231.59,231.55,0.1]
[1758508829140,1e-08,231.59,231.56,15.11487303]
[1758508829684,1e-08,231.59,231.57,0.1]
[1758508829864,1e-08,231.59,231.58,41.14]
[1758508830176,0.1,231.69,231.61,31.2]
[1758508830349,0.1,231.69,231.62,0.43174164]
[1758508830544,0.1,231.69,231.63,41.24]
[1758508831150,0.1,231.69,231.65,15.10900063]
[1758508832172,0.1,231.69,231.65,4.31685732]
[1758508832173,0.68,231.68,231.65,4.31685732]
[1758508832855,0.1,231.69,231.65,4.31685732]
[1758508833058,0.1,231.69,231.66,0.1]
[1758508833356,0.1,231.69,231.68,4.31629834]
[1758508834961,0.1,231.76,231.68,11.32237568]
[1758508835564,0.1,231.76,231.71,31.2]
[1758508835772,0.1,231.76,231.72,41.49155532]
[1758508837349,0.1,231.76,231.73,15.10378457]
[1758508837554,0.1,231.76,231.73,15.20378457]
[1758508838111,0.1,231.76,231.74,0.53151808]
[1758508838458,0.1,231.76,231.75,0.1]
[1758508838783,0.1,231.76,231.74,0.43151808]
[1758508838984,0.1,231.79,231.75,0.1]
[1758508839288,0.1,231.79,231.76,41.55148084]
[1758508839859,0.1,231.79,231.77,4.31462225]
[1758508840160,0.1,231.79,231.78,0.43144361]
[1758508841261,0.1,231.79,231.77,4.31462225]
[1758508842070,0.68,231.78,231.68,12.97]
[1758508842282,0.1,231.79,231.69,56.16639215]
[1758508842459,0.78,231.79,231.72,31.2]
[1758508842768,0.68,231.78,231.7,40.96]
[1758508842962,0.68,231.77,231.7,40.96]
[1758508843163,0.68,231.76,231.69,40.96]
[1758508843465,0.68,231.75,231.66,40.96]
[1758508843786,0.68,231.74,231.66,40.96]
[1758508844159,0.68,231.74,231.67,4.31648465]
[1758508844579,0.68,231.74,231.67,15.10769628]
[1758508845083,0.68,231.77,231.67,15.10769628]
[1758508845601,0.68,231.76,231.67,4.31648465]
[1758508846105,0.68,231.76,231.67,15.10769628]
[1758508846476,0.1,231.79,231.67,4.31648465]
[1758508846477,4.41431451,231.79,231.67,4.31648465]
[1758508846674,0.68,231.75,231.64,12.7112559]
[1758508846893,31.2,231.76,231.64,12.7112559]
[1758508846894,0.68,231.74,231.64,40.9]
[1758508847093,0.68,231.73,231.64,45.217008]
[1758508847292,0.68,231.72,231.64,45.217008]
[1758508847817,0.68,231.75,231.64,56.00961722]
[1758508848177,0.68,231.74,231.64,56.00961722]
[1758508848398,35.61427001,231.79,231.64,56.00961722]
[1758508848399,0.68,231.73,231.64,56.00961722]
[1758508848714,0.68,231.72,231.64,56.00961722]
[1758508849180,0.68,231.71,231.64,40.9]
[1758508849378,0.68,231.71,231.62,4.31741645]
[1758508849582,0.68,231.7,231.61,17.41249533]
[1758508849782,0.68,231.69,231.61,17.41249533]
[1758508849977,0.68,231.68,231.61,17.41249533]
[1758508851413,0.68,231.72,231.61,17.41249533]
[1758508851586,31.2,231.77,231.62,0.53174164]
[1758508851793,0.68,231.76,231.62,0.53174164]
[1758508851996,31.88,231.76,231.62,0.53174164]
[1758508852200,31.88,231.76,231.63,15.11030522]
[1758508852500,0.68,231.75,231.64,40.84]
[1758508853105,0.68,231.75,231.65,0.53168573]
[1758508853422,0.78,231.79,231.67,31.2]
[1758508853626,0.78,231.79,231.68,0.43162983]
[1758508853797,0.78,231.79,231.69,40.82]
[1758508854211,0.78,231.79,231.7,15.10574017]
[1758508854717,0.68,231.78,231.69,40.82]
[1758508854918,0.68,231.77,231.69,45.1360793]
[1758508855102,0.68,231.76,231.69,45.1360793]
[1758508855311,31.88,231.76,231.69,45.1360793]
[1758508855823,31.88,231.76,231.69,4.3160793]
[1758508856223,31.88,231.76,231.66,15.1079362]
[1758508859013,31.2,231.76,231.67,0.53164846]
[1758508859524,0.1,231.79,231.68,0.1]
[1758508859707,31.3,231.79,231.68,0.1]
[1758508860107,0.72,231.78,231.66,15.1079362]
[1758508860302,0.72,231.77,231.66,15.1079362]
[1758508860534,0.72,231.77,231.66,15.2079362]
[1758508860710,0.72,231.76,231.66,4.31667098]
[1758508860919,0.72,231.75,231.66,45.05667098]
[1758508861116,0.72,231.74,231.66,40.74]
[1758508861308,31.3,231.79,231.66,40.74]
[1758508861309,0.1,231.79,231.66,40.74]
[1758508861525,0.1,231.79,231.69,31.2]
[1758508861908,0.1,231.79,231.7,0.43159257]
[1758508862321,0.1,231.79,231.71,0.1]
[1758508862628,0.1,231.79,231.72,0.43155532]
[1758508862926,0.1,231.79,231.73,15.20378457]
[1758508863148,0.1,231.79,231.74,0.43151808]
[1758508863512,0.1,231.79,231.73,4.31536702]
[1758508863930,0.1,231.79,231.74,0.43151808]
[1758508864134,0.1,231.79,231.76,31.2]
[1758508864437,0.1,231.79,231.77,0.53146222]
[1758508864636,0.1,231.79,231.78,0.1]
[1758508864835,0.1,231.79,231.78,45.0944361]
[1758508865414,0.1,231.79,231.78,44.9944361]
[1758508865612,0.1,231.79,231.78,4.3144361]
[1758508866029,0.82,231.79,231.76,40.66]
[1758508866210,0.72,231.78,231.72,40.66]
[1758508866411,0.1,231.79,231.56,25.8915009]
[1758508866412,0.72,231.77,231.67,4.31648465]
[1758508866640,0.1,231.79,231.67,4.31648465]
[1758508866641,0.72,231.76,231.67,4.31648465]
[1758508866928,0.72,231.75,231.65,4.31671273]
[1758508867127,0.72,231.74,231.65,4.31671273]
[1758508867338,31.2,231.76,231.65,4.31671273]
[1758508867513,0.72,231.73,231.65,4.31671273]
[1758508867709,0.72,231.76,231.65,4.31671273]
[1758508867924,0.82,231.79,231.66,0.53166709]
[1758508868146,0.82,231.79,231.67,31.3]
[1758508868333,0.82,231.79,231.68,0.43162983]
[1758508868917,0.1,231.79,231.7,15.10574017]
[1758508869141,0.1,231.79,231.71,41.15157395]
[1758508870525,0.79,231.79,231.71,41.05157395]
[1758508871040,0.69,231.78,231.72,4.31555325]
[1758508871341,0.69,231.78,231.72,15.10443638]
[1758508871528,0.69,231.78,231.72,4.31555325]
[1758508872744,0.69,231.78,231.72,15.10443638]
[1758508873054,0.69,231.78,231.72,4.31555325]
[1758508873842,0.1,231.79,231.72,15.10443638]
[1758508875726,0.1,231.79,231.72,15.20443638]
[1758508875922,0.1,231.79,231.75,31.2]
[1758508876135,0.1,231.79,231.76,40.97148084]
[1758508876340,0.1,231.79,231.76,41.07148084]
[1758508876528,0.1,231.79,231.77,0.1]
[1758508876722,0.1,231.82,231.78,0.53144361]
[1758508876923,0.1,231.82,231.79,0.1]
[1758508877238,0.1,231.82,231.8,0.43140638]
[1758508877543,0.1,231.82,231.81,4.31387774]
[1758508878945,0.1,231.82,231.81,44.81387774]
[1758508879250,1e-08,231.82,231.81,44.91387774]
[1758508879450,1e-08,231.83,231.81,44.91387774]
[1758508879645,1e-08,231.83,231.82,0.53136916]
[1758508880742,1e-08,231.83,231.82,40.46]
[1758508880913,1e-08,231.83,231.81,4.31387774]
[1758508881118,1e-08,231.83,231.79,40.46]
[1758508881520,1e-08,231.83,231.8,4.31406384]
[1758508881721,1e-08,231.83,231.8,15.09922346]
[1758508882615,1e-08,231.83,231.8,4.31406384]
[1758508882821,1e-08,231.83,231.8,15.09922346]
[1758508883133,1e-08,231.83,231.82,31.2]
[1758508883653,1e-08,231.83,231.82,35.61369165]
[1758508884428,1e-08,231.83,231.82,35.51369165]
[1758508886242,1e-08,231.83,231.82,4.31369165]
[1758508886740,1e-08,231.83,231.81,40.38]
[1758508887363,1e-08,231.83,231.82,0.43136916]
[1758508887846,1e-08,231.83,231.82,0.53136916]
[1758508890644,1e-08,231.83,231.82,13.50136916]
[1758508893058,1e-08,231.83,231.82,13.40136916]
[1758508893458,1e-08,231.83,231.82,13.50136916]
[1758508893868,1e-08,231.83,231.82,94.10136916]
[1758508894069,1e-08,231.83,231.82,93.67]
[1758508895052,1e-08,231.83,231.82,80.6]
[1758508895243,1e-08,231.83,231.82,81.03136916]
[1758508896639,1e-08,231.83,231.82,81.13136916]
[1758508896955,1e-08,231.83,231.82,81.03136916]
[1758508897767,1e-08,231.83,231.82,0.43136916]
[1758508898659,0.69000001,231.83,231.81,40.38]
[1758508898956,0.69,231.82,231.81,40.38]
[1758508900157,1e-08,231.83,231.81,40.38]
[1758508900671,0.69000001,231.83,231.81,40.38]
[1758508900860,1e-08,231.83,231.81,40.38]
[1758508901164,0.69,231.82,231.81,40.38]
[1758508901633,1e-08,231.83,231.81,40.38]
[1758508901830,0.69000001,231.83,231.81,40.38]
[1758508902264,1e-08,231.83,231.81,40.38]
[1758508902747,0.69,231.82,231.81,40.38]
[1758508903138,1e-08,231.83,231.81,40.38]
[1758508903454,0.69,231.82,231.81,40.38]
[1758508904239,1e-08,231.83,231.81,40.38]
[1758508904630,0.69000001,231.83,231.81,40.38]
[1758508905658,1e-08,231.83,231.81,40.38]
[1758508905840,0.69000001,231.83,231.81,40.38]
[1758508906045,1e-08,231.83,231.81,40.38]
[1758508908153,1e-08,231.83,231.82,0.43136916]
[1758508908672,1e-08,231.83,231.82,0.53136916]
[1758508909242,1e-08,231.83,231.82,0.43136916]
[1758508910165,1e-08,231.83,231.82,0.53136916]
[1758508911865,1e-08,231.83,231.82,0.43136916]
[1758508912765,0.69000001,231.83,231.8,31.2]
[1758508912940,1e-08,231.83,231.81,40.0]
[1758508913143,0.69,231.82,231.81,40.0]
[1758508913855,0.69,231.82,231.81,39.28]
[1758508914173,0.69,231.82,231.79,39.98]
[1758508914377,0.69,231.81,231.68,36.70901943]
[1758508914677,0.69,231.8,231.69,39.96]
[1758508914847,1e-08,231.83,231.69,39.96]
[1758508914848,0.69,231.79,231.69,39.96]
[1758508915047,0.69,231.78,231.69,39.96]
[1758508915248,0.69,231.77,231.72,31.2]
[1758508915442,0.69,231.76,231.73,39.96]
[1758508915648,0.69,231.75,231.73,39.96]
[1758508915857,0.69,231.74,231.73,39.96]
[1758508917862,0.69,231.74,231.73,44.27536702]
[1758508918666,0.69,231.74,231.73,39.96]
[1758508920057,0.69,231.74,231.7,4.31576856]
[1758508920267,0.68,231.73,231.68,4.31616332]
[1758508920469,4.31407513,231.8,231.61,0.1]
[1758508920470,0.68,231.72,231.61,0.1]
[1758508920680,0.68,231.72,231.62,44.19741645]
[1758508920977,0.68,231.71,231.62,44.19741645]
[1758508921145,0.68,231.7,231.62,44.19741645]
[1758508921464,0.68,231.69,231.61,0.1]
[1758508921979,36.19614595,231.69,231.61,0.1]
[1758508922470,31.88,231.69,231.61,0.1]
[1758508922658,0.68,231.69,231.61,4.41747448]
[1758508922858,0.68,231.68,231.61,4.41747448]
[1758508923067,0.68,231.67,231.61,4.41747448]
[1758508923255,0.68,231.66,231.61,4.41747448]
[1758508923579,0.68,231.65,231.61,4.41747448]
[1758508923753,0.68,231.64,231.61,0.1]
[1758508924260,0.68,231.64,231.55,0.2]
[1758508924449,0.68,231.64,231.51,0.1]
[1758508925077,31.2,231.61,231.51,0.1]
[1758508925282,0.68,231.6,231.51,0.1]
[1758508925778,35.51797573,231.59,231.51,0.1]
[1758508926072,0.68,231.58,231.51,0.1]
[1758508927758,0.68,231.58,231.51,15.21805588]
[1758508929165,0.68,231.57,231.51,4.41938628]
[1758508929378,4.31685732,231.65,231.51,4.41938628]
[1758508929379,0.68,231.56,231.51,4.41938628]
[1758508929584,0.68,231.56,231.51,15.21805588]
[1758508929585,0.66,231.56,231.51,15.21805588]
[1758508929886,0.66,231.6,231.51,15.91805588]
[1758508930186,0.66,231.6,231.51,15.21805588]
[1758508930699,31.2,231.65,231.51,15.21805588]
[1758508930865,0.66,231.59,231.51,4.41938628]
[1758508931062,0.66,231.58,231.51,0.1]
[1758508931472,0.66,231.58,231.42,4.32102458]
[1758508931680,31.2,231.55,231.42,4.32102458]
[1758508931876,0.66,231.54,231.42,4.32102458]
[1758508932063,31.86,231.53,231.42,4.32102458]
[1758508932263,0.66,231.52,231.42,4.32102458]
[1758508932479,0.66,231.52,231.43,0.7]
[1758508932962,0.66,231.52,231.44,15.12270998]
[1758508934364,70.94,231.6,231.44,15.12270998]
[1758508934580,0.66,231.51,231.44,15.12270998]
[1758508934882,0.66,231.5,231.42,4.32114769]
[1758508935083,0.66,231.49,231.42,4.32114769]
[1758508936282,0.66,231.49,231.42,15.12401693]
[1758508939187,0.66,231.49,231.42,4.32114769]
[1758508939499,0.66,231.49,231.41,4.42129743]
[1758508939712,0.66,231.48,231.41,4.42129743]
[1758508942279,31.86,231.47,231.41,0.1]
[1758508942982,36.18036109,231.47,231.41,0.1]
[1758508943373,31.86,231.47,231.41,0.1]
[1758508943791,71.48,231.47,231.41,0.1]
[1758508944185,75.80023054,231.47,231.41,0.1]
[1758508945403,71.48,231.47,231.41,0.1]
[1758508945600,31.86,231.47,231.41,0.1]
[1758508945822,0.66,231.47,231.41,0.1]
[1758508945975,31.2,231.47,231.41,4.42125406]
[1758508946175,31.2,231.47,231.42,0.7]
[1758508946400,31.86,231.47,231.41,15.22459013]
[1758508946593,31.86,231.47,231.41,4.42125406]
[1758508946987,31.2,231.46,231.41,4.42125406]
[1758508947380,31.2,231.46,231.41,5.11125406]
[1758508947601,0.69,231.51,231.42,0.69]
[1758508948098,31.2,231.49,231.42,0.69]
[1758508948291,0.69,231.48,231.41,15.22459013]
[1758508948494,0.69,231.48,231.41,4.42125406]
[1758508949017,31.89,231.48,231.41,4.42125406]
[1758508949378,0.69,231.47,231.41,0.1]
[1758508950199,0.69,231.47,231.41,4.42131169]
[1758508950404,31.2,231.46,231.41,5.11131169]
[1758508950782,31.2,231.46,231.42,0.69]
[1758508950979,39.52,231.5,231.41,4.42131169]
[1758508950980,31.2,231.52,231.43,0.69]
[1758508951206,31.2,231.48,231.43,0.69]
[1758508951392,31.2,231.48,231.44,4.32077428]
[1758508952300,31.89,231.48,231.44,4.32077428]
[1758508952492,0.69,231.48,231.44,4.32077428]
[1758508953009,31.2,231.54,231.44,4.32077428]
[1758508953232,0.69,231.52,231.44,5.01077428]
[1758508953706,31.2,231.51,231.44,15.81270998]
[1758508954216,0.69,231.52,231.44,15.81270998]
[1758508954401,0.69,231.52,231.44,4.32077428]
[1758508954603,31.2,231.5,231.44,4.32077428]
[1758508955013,0.69,231.49,231.41,0.1]
[1758508955312,0.69,231.49,231.41,4.42133233]
[1758508955492,0.69,231.48,231.41,4.42133233]
[1758508955694,40.15,231.48,231.41,4.42133233]
[1758508955890,31.2,231.46,231.41,5.11133233]
[1758508956514,0.69,231.48,231.42,0.69]
[1758508956700,31.2,231.5,231.42,0.69]
[1758508956903,31.2,231.48,231.42,0.69]
[1758508957206,132.2,231.53,231.42,0.69]
[1758508957389,31.2,231.5,231.42,0.69]
[1758508957589,31.2,231.5,231.43,15.12336343]
[1758508957916,31.2,231.5,231.44,0.69]
[1758508958991,0.69,231.49,231.43,15.12336343]
[1758508959505,0.69,231.48,231.41,0.1]
[1758508959712,0.69,231.48,231.41,4.42126306]
[1758508959907,0.69,231.47,231.41,4.42126306]
[1758508960310,31.2,231.46,231.41,4.42126306]
[1758508960813,31.89,231.45,231.41,4.42126306]
[1758508961720,31.89,231.44,231.41,0.1]
[1758508962014,31.2,231.43,231.41,0.1]
[1758508962392,31.2,231.47,231.41,0.1]
[1758508962694,31.2,231.43,231.41,0.1]
[1758508962892,0.69,231.45,231.41,4.42132495]
[1758508963114,31.2,231.5,231.41,4.42132495]
[1758508963314,31.2,231.47,231.41,4.42129648]
[1758508963517,31.2,231.47,231.41,15.22463255]
[1758508963824,0.69,231.56,231.42,0.69]
[1758508963999,0.69,231.53,231.42,0.69]
[1758508964807,31.2,231.51,231.42,0.69]
[1758508965198,31.89,231.51,231.42,0.69]
[1758508966212,31.89,231.51,231.43,15.12336343]
[1758508966902,31.2,231.51,231.43,15.12336343]
[1758508967108,0.69,231.54,231.44,0.69]
[1758508967303,31.2,231.5,231.44,0.69]
[1758508967812,31.2,231.51,231.44,0.69]
[1758508968300,31.2,231.51,231.45,15.12205658]
[1758508971009,31.2,231.54,231.46,0.69]
[1758508971216,2.84895184,231.53,231.46,0.69]
[1758508971523,70.44,231.54,231.46,0.69]
[1758508972199,31.2,231.54,231.47,15.12074998]
[1758508973213,132.2,231.57,231.48,0.69]
[1758508973801,0.69,231.56,231.48,0.69]
[1758508974216,0.69,231.56,231.49,15.11944359]
[1758508974611,132.2,231.57,231.49,15.11944359]
[1758508974816,132.2,231.57,231.5,0.69]
[1758508975017,132.89,231.57,231.49,15.11944359]
[1758508976229,132.89,231.57,231.49,10.79960257]
[1758508976626,132.89,231.57,231.45,31.2]
[1758508976627,0.69,231.56,231.45,31.2]